fUSD/lending_fUSD_20241020
["ID","MTS","AMOUNT","RATE_DAILY","PERIOD"]
[340543583,1729429852897,-597.75,0.00024999,2]
[340543584,1729429852906,-597.75,0.00024999,2]
[340543585,1729429852916,-597.75,0.00024999,2]
[340543586,1729429852925,-597.75,0.00024999,2]
[340543587,1729429852935,-597.75,0.00024999,2]
[340543588,1729429852944,-1144.68,0.00024999,2]
[340543589,1729429852953,-1144.68,0.00024999,2]
[340543590,1729429852963,-1144.68,0.00024999,2]
[340543591,1729429852972,-1144.68,0.00024999,2]
[340543592,1729429852982,-1144.68,0.00024999,2]
[340543593,1729429852991,-1144.68,0.00024999,2]
[340543594,1729429853009,-1144.68,0.00024999,2]
[340543595,1729429853019,-1144.68,0.00024999,2]
[340543596,1729429853028,-1144.68,0.00024999,2]
[340543597,1729429853037,-1144.68,0.00024999,2]
[340543598,1729429853046,-1144.84,0.00024999,2]
[340543599,1729429853056,-1019.68,0.00024999,2]
[340543601,1729429853066,-1019.68,0.00024999,2]
[340543602,1729429853076,-1019.68,0.00024999,2]
[340543603,1729429853086,-1019.68,0.00024999,2]
[340543604,1729429853095,-1019.68,0.00024999,2]
[340543605,1729429853105,-1019.68,0.00024999,2]
[340543606,1729429853114,-1019.68,0.00024999,2]
[340543607,1729429853125,-1019.68,0.00024999,2]
[340543608,1729429853134,-1019.68,0.00024999,2]
[340543609,1729429853144,-1019.68,0.00024999,2]
[340543610,1729429853153,-1019.74,0.00024999,2]
[340543611,1729429853163,-356.70486068,0.00024999,2]
[340543612,1729429853172,-500.0,0.00024999,2]
[340543613,1729429853182,-500.0,0.00024999,2]
[340543614,1729429853193,-500.0,0.00024999,2]
[340543615,1729429853202,-500.0,0.00024999,2]
[340543616,1729429853212,-500.0,0.00024999,2]
[340543617,1729429853222,-500.0,0.00024999,2]
[340543618,1729429853231,-1183.71,0.00024999,2]
[340543619,1729429853245,-1183.71,0.00024999,2]
[340543620,1729429853255,-1183.71,0.00024999,2]
[340543621,1729429853264,-1183.71,0.00024999,2]
[340543622,1729429853273,-1183.71,0.00024999,2]
[340543623,1729429853283,-1183.71,0.00024999,2]
[340543624,1729429853292,-1183.71,0.00024999,2]
[340543625,1729429853302,-1183.71,0.00024999,2]
[340543626,1729429853312,-1183.71,0.00024999,2]
[340543627,1729429853324,-1183.71,0.00024999,2]
[340543628,1729429853334,-1183.79,0.00024999,2]
[340543629,1729429853344,-504.48,0.00024999,2]
[340543630,1729429853353,-504.48,0.00024999,2]
[340543631,1729429853363,-504.48,0.00024999,2]
[340543632,1729429853372,-504.48,0.00024999,2]
[340543633,1729429853381,-504.48,0.00024999,2]
[340543634,1729429853391,-504.48,0.00024999,2]
[340543635,1729429853400,-504.48,0.00024999,2]
[340543636,1729429853411,-504.48,0.00024999,2]
[340543637,1729429853420,-504.48,0.00024999,2]
[340543638,1729429853429,-504.48,0.00024999,2]
[340543639,1729429853439,-504.71,0.00024999,2]
[340543640,1729429853448,-500.0,0.00024999,2]
[340543641,1729429853457,-500.0,0.00024999,2]
[340543642,1729429853467,-500.0,0.00024999,2]
[340543643,1729429853476,-500.0,0.00024999,2]
[340543644,1729429853485,-500.0,0.00024999,2]
[340543645,1729429853495,-500.0,0.00024999,2]
[340543646,1729429853504,-500.0,0.00024999,2]
[340543647,1729429853514,-500.0,0.00024999,2]
[340543648,1729429853523,-586.88,0.00024999,2]
[340543649,1729429853534,-500.0,0.00024999,2]
[340543650,1729429853546,-430.87662927,0.00024999,2]
[340543651,1729429853555,-827.32,0.00024999,2]
[340543652,1729429853565,-827.32,0.00024999,2]
[340543653,1729429853574,-827.32,0.00024999,2]
[340543654,1729429853583,-827.32,0.00024999,2]
[340543655,1729429853593,-827.32,0.00024999,2]
[340543656,1729429853603,-827.32,0.00024999,2]
[340543657,1729429853612,-827.32,0.00024999,2]
[340543658,1729429853623,-827.32,0.00024999,2]
[340543659,1729429853632,-827.32,0.00024999,2]
[340543660,1729429853642,-827.32,0.00024999,2]
[340543661,1729429853652,-827.4,0.00024999,2]
[340543662,1729429853663,-500.0,0.00024999,2]
[340543663,1729429853672,-382.52611993,0.00024999,2]
[340543664,1729429853683,-952.03,0.00024999,2]
[340543665,1729429853693,-500.0,0.00024999,2]
[340543666,1729429853703,-500.0,0.00024999,2]
[340543667,1729429853713,-952.03,0.00024999,2]
[340543668,1729429853724,-952.03,0.00024999,2]
[340543669,1729429853734,-500.0,0.00024999,2]
[340543670,1729429853744,-952.03,0.00024999,2]
[340543671,1729429853754,-500.0,0.00024999,2]
[340543672,1729429853764,-952.03,0.00024999,2]
[340543673,1729429853774,-952.03,0.00024999,2]
[340543674,1729429853787,-500.0,0.00024999,2]
[340543675,1729429853797,-952.03,0.00024999,2]
[340543676,1729429853807,-952.03,0.00024999,2]
[340543677,1729429853816,-952.03,0.00024999,2]
[340543678,1729429853826,-952.03,0.00024999,2]
[340543679,1729429853835,-952.03,0.00024999,2]
[340543680,1729429853845,-952.03,0.00024999,2]
[340543681,1729429853854,-952.25823362,0.00024999,2]
[340543682,1729429853864,-600.58,0.00024999,2]
[340543683,1729429853873,-600.58,0.00024999,2]
[340543684,1729429853883,-600.58,0.00024999,2]
[340543685,1729429853892,-600.58,0.00024999,2]
[340543686,1729429853901,-600.58,0.00024999,2]
[340543687,1729429853911,-600.58,0.00024999,2]
[340543688,1729429853920,-600.58,0.00024999,2]
[340543689,1729429853929,-600.58,0.00024999,2]
[340543690,1729429853939,-600.58,0.00024999,2]
[340543691,1729429853948,-600.58,0.00024999,2]
[340543692,1729429853961,-600.58,0.00024999,2]
[340543693,1729429853970,-600.58,0.00024999,2]
[340543694,1729429853979,-600.79330174,0.00024999,2]
[340543695,1729429853989,-845.8,0.00024999,2]
[340543696,1729429853999,-845.8,0.00024999,2]
[340543697,1729429854008,-845.8,0.00024999,2]
[340543698,1729429854018,-500.0,0.00024999,2]
[340543699,1729429854027,-845.8,0.00024999,2]
[340543700,1729429854036,-845.8,0.00024999,2]
[340543701,1729429854046,-845.8,0.00024999,2]
[340543702,1729429854094,-500.0,0.00024999,2]
[340543703,1729429854104,-845.8,0.00024999,2]
[340543704,1729429854113,-500.0,0.00024999,2]
[340543705,1729429854123,-845.8,0.00024999,2]
[340543706,1729429854132,-500.0,0.00024999,2]
[340543707,1729429854141,-845.8,0.00024999,2]
[340543708,1729429854150,-500.0,0.00024999,2]
[340543709,1729429854159,-845.8,0.00024999,2]
[340543710,1729429854168,-500.0,0.00024999,2]
[340543711,1729429854177,-845.96,0.00024999,2]
[340543712,1729429854187,-500.0,0.00024999,2]
[340543713,1729429854197,-500.0,0.00024999,2]
[340543714,1729429854207,-500.0,0.00024999,2]
[340543715,1729429854216,-500.0,0.00024999,2]
[340543716,1729429854224,-500.0,0.00024999,2]
[340543717,1729429854234,-625.72861004,0.00024999,2]
[340543718,1729429854242,-500.0,0.00024999,2]
[340543719,1729429854253,-500.0,0.00024999,2]
[340543720,1729429854262,-500.0,0.00024999,2]
[340543721,1729429854271,-500.0,0.00024999,2]
[340543722,1729429854280,-500.0,0.00024999,2]
[340543723,1729429854289,-500.0,0.00024999,2]
[340543724,1729429854298,-500.0,0.00024999,2]
[340543725,1729429854307,-500.0,0.00024999,2]
[340543726,1729429854316,-500.0,0.00024999,2]
[340543727,1729429854325,-500.0,0.00024999,2]
[340543728,1729429854334,-500.0,0.00024999,2]
[340543729,1729429854343,-500.0,0.00024999,2]
[340543730,1729429854351,-278.43762483,0.00024999,2]
[340543731,1729429854360,-500.0,0.00024999,2]
[340543732,1729429854369,-533.48051188,0.00024999,2]
[340543733,1729429854379,-577.1,0.00024999,2]
[340543734,1729429854387,-577.1,0.00024999,2]
[340543735,1729429854396,-577.1,0.00024999,2]
[340543736,1729429854406,-577.1,0.00024999,2]
[340543737,1729429854415,-577.1,0.00024999,2]
[340543738,1729429854424,-577.1,0.00024999,2]
[340543739,1729429854433,-577.1,0.00024999,2]
[340543740,1729429854442,-577.1,0.00024999,2]
[340543741,1729429854451,-577.1,0.00024999,2]
[340543742,1729429854460,-577.1,0.00024999,2]
[340543743,1729429854469,-577.13,0.00024999,2]
[340543744,1729429854478,-832.8,0.00024999,2]
[340543745,1729429854487,-832.8,0.00024999,2]
[340543746,1729429854497,-832.8,0.00024999,2]
[340543747,1729429854506,-832.8,0.00024999,2]
[340543748,1729429854515,-832.8,0.00024999,2]
[340543749,1729429854524,-832.8,0.00024999,2]
[340543750,1729429854534,-832.8,0.00024999,2]
[340543751,1729429854543,-832.8,0.00024999,2]
[340543752,1729429854552,-832.8,0.00024999,2]
[340543753,1729429854562,-832.8,0.00024999,2]
[340543754,1729429854571,-833.01,0.00024999,2]
[340543755,1729429854580,-500.0,0.00024999,2]
[340543756,1729429854589,-576.84191241,0.00024999,2]
[340543757,1729429854599,-500.0,0.00024999,2]
[340543758,1729429854608,-479.26558984,0.00024999,2]
[340543759,1729429854617,-500.0,0.00024999,2]
[340543760,1729429854626,-500.0,0.00024999,2]
[340543761,1729429854636,-500.0,0.00024999,2]
[340543762,1729429854644,-500.0,0.00024999,2]
[340543763,1729429854654,-500.0,0.00024999,2]
[340543764,1729429854663,-500.0,0.00024999,2]
[340543765,1729429854673,-511.7339499,0.00024999,2]
[340543766,1729429854683,-500.0,0.00024999,2]
[340543767,1729429854693,-500.0,0.00024999,2]
[340543768,1729429854702,-500.0,0.00024999,2]
[340543769,1729429854711,-500.0,0.00024999,2]
[340543770,1729429854720,-595.25,0.00024999,2]
[340543771,1729429854729,-595.25,0.00024999,2]
[340543772,1729429854738,-595.25,0.00024999,2]
[340543773,1729429854749,-595.25,0.00024999,2]
[340543774,1729429854758,-595.25,0.00024999,2]
[340543775,1729429854767,-595.25,0.00024999,2]
[340543776,1729429854776,-595.25,0.00024999,2]
[340543777,1729429854785,-595.25,0.00024999,2]
[340543778,1729429854795,-595.25,0.00024999,2]
[340543779,1729429854804,-595.25,0.00024999,2]
[340543780,1729429854812,-595.25,0.00024999,2]
[340543781,1729429854822,-595.25,0.00024999,2]
[340543782,1729429854831,-595.35,0.00024999,2]
[340543783,1729429854841,-2884.9,0.00024999,2]
[340543784,1729429854850,-2884.9,0.00024999,2]
[340543785,1729429854859,-2884.9,0.00024999,2]
[340543786,1729429854869,-2884.9,0.00024999,2]
[340543787,1729429854878,-2884.9,0.00024999,2]
[340543788,1729429854887,-2884.9,0.00024999,2]
[340543789,1729429854897,-2884.9,0.00024999,2]
[340543790,1729429854906,-2884.9,0.00024999,2]
[340543791,1729429854915,-2884.9,0.00024999,2]
[340543792,1729429854924,-608.09,0.00024999,2]
[340543793,1729429854933,-2884.9,0.00024999,2]
[340543794,1729429854942,-608.09,0.00024999,2]
[340543795,1729429854951,-2884.9,0.00024999,2]
[340543796,1729429854961,-608.09,0.00024999,2]
[340543797,1729429854970,-2884.9,0.00024999,2]
[340543798,1729429854979,-608.09,0.00024999,2]
[340543799,1729429854988,-2885.01,0.00024999,2]
[340543800,1729429854998,-608.09,0.00024999,2]
[340543801,1729429855007,-608.09,0.00024999,2]
[340543802,1729429855017,-608.09,0.00024999,2]
[340543803,1729429855026,-608.09,0.00024999,2]
[340543804,1729429855035,-608.09,0.00024999,2]
[340543805,1729429855044,-608.09,0.00024999,2]
[340543806,1729429855053,-608.11759573,0.00024999,2]
[340543807,1729429855063,-500.0,0.00024999,2]
[340543808,1729429855072,-500.0,0.00024999,2]
[340543809,1729429855082,-500.0,0.00024999,2]
[340543810,1729429855091,-391.78,0.00024999,2]
[340543811,1729429855100,-500.0,0.00024999,2]
[340543812,1729429855109,-500.0,0.00024999,2]
[340543813,1729429855119,-500.0,0.00024999,2]
[340543814,1729429855128,-500.0,0.00024999,2]
[340543815,1729429855137,-631.88161592,0.00024999,2]
[340543816,1729429855146,-2504.78,0.00024999,2]
[340543817,1729429855155,-2504.78,0.00024999,2]
[340543818,1729429855164,-2504.78,0.00024999,2]
[340543819,1729429855173,-2504.78,0.00024999,2]
[340543820,1729429855183,-2504.78,0.00024999,2]
[340543821,1729429855194,-2504.78,0.00024999,2]
[340543822,1729429855203,-2504.78,0.00024999,2]
[340543823,1729429855212,-2504.78,0.00024999,2]
[340543824,1729429855221,-2504.78,0.00024999,2]
[340543825,1729429855231,-2504.78,0.00024999,2]
[340543826,1729429855244,-2504.78,0.00024999,2]
[340543827,1729429855254,-2504.78,0.00024999,2]
[340543828,1729429855264,-2504.92,0.00024999,2]
[340543829,1729429855273,-1044.56,0.00024999,2]
[340543830,1729429855283,-1044.56,0.00024999,2]
[340543831,1729429855293,-1044.56,0.00024999,2]
[340543832,1729429855302,-1044.56,0.00024999,2]
[340543833,1729429855311,-1044.56,0.00024999,2]
[340543834,1729429855322,-1044.56,0.00024999,2]
[340543835,1729429855331,-1044.56,0.00024999,2]
[340543836,1729429855340,-1044.56,0.00024999,2]
[340543837,1729429855349,-1044.56,0.00024999,2]
[340543838,1729429855359,-1044.56,0.00024999,2]
[340543839,1729429855369,-1044.56,0.00024999,2]
[340543840,1729429855379,-1044.56,0.00024999,2]
[340543841,1729429855388,-1044.67,0.00024999,2]
[340543842,1729429855398,-500.0,0.00024999,2]
[340543843,1729429855408,-500.0,0.00024999,2]
[340543844,1729429855419,-500.0,0.00024999,2]
[340543845,1729429855428,-500.0,0.00024999,2]
[340543846,1729429855438,-500.0,0.00024999,2]
[340543847,1729429855451,-500.0,0.00024999,2]
[340543848,1729429855460,-500.0,0.00024999,2]
[340543849,1729429855469,-215.86981645,0.00024999,2]
[340543850,1729429855478,-500.0,0.00024999,2]
[340543851,1729429855489,-500.0,0.00024999,2]
[340543852,1729429855498,-500.0,0.00024999,2]
[340543853,1729429855508,-500.0,0.00024999,2]
[340543854,1729429855517,-500.0,0.00024999,2]
[340543855,1729429855528,-500.0,0.00024999,2]
[340543856,1729429855538,-500.0,0.00024999,2]
[340543857,1729429855548,-500.0,0.00024999,2]
[340543858,1729429855558,-500.0,0.00024999,2]
[340543859,1729429855568,-480.0,0.00024999,2]
[340543860,1729429855578,-500.0,0.00024999,2]
[340543861,1729429855589,-500.0,0.00024999,2]
[340543862,1729429855598,-500.0,0.00024999,2]
[340543863,1729429855607,-500.0,0.00024999,2]
[340543864,1729429855616,-260.20528179,0.00024999,2]
[340543865,1729429855626,-1761.11,0.00024999,2]
[340543866,1729429855635,-1761.11,0.00024999,2]
[340543867,1729429855645,-1761.11,0.00024999,2]
[340543868,1729429855656,-1761.11,0.00024999,2]
[340543869,1729429855666,-1761.11,0.00024999,2]
[340543870,1729429855675,-1761.11,0.00024999,2]
[340543871,1729429855685,-1761.11,0.00024999,2]
[340543872,1729429855695,-1761.11,0.00024999,2]
[340543873,1729429855706,-1761.11,0.00024999,2]
[340543874,1729429855715,-1761.11,0.00024999,2]
[340543875,1729429855726,-1761.11,0.00024999,2]
[340543876,1729429855737,-1761.11,0.00024999,2]
[340543877,1729429855748,-1761.11,0.00024999,2]
[340543878,1729429855757,-500.0,0.00024999,2]
[340543879,1729429855767,-500.0,0.00024999,2]
[340543880,1729429855776,-500.0,0.00024999,2]
[340543881,1729429855785,-500.0,0.00024999,2]
[340543882,1729429855795,-500.0,0.00024999,2]
[340543883,1729429855805,-500.0,0.00024999,2]
[340543884,1729429855815,-500.0,0.00024999,2]
[340543885,1729429855824,-500.0,0.00024999,2]
[340543886,1729429855833,-500.0,0.00024999,2]
[340543887,1729429855843,-500.0,0.00024999,2]
[340543888,1729429855854,-500.0,0.00024999,2]
[340543889,1729429855863,-500.0,0.00024999,2]
[340543890,1729429855874,-500.0,0.00024999,2]
[340543891,1729429855883,-500.0,0.00024999,2]
[340543892,1729429855893,-487.13,0.00024999,2]
[340543893,1729429855902,-500.0,0.00024999,2]
[340543894,1729429855916,-500.0,0.00024999,2]
[340543895,1729429855925,-500.0,0.00024999,2]
[340543896,1729429855934,-500.0,0.00024999,2]
[340543897,1729429855944,-320.62,0.00024999,2]
[340543898,1729429855954,-890.3,0.00024999,2]
[340543899,1729429855963,-890.3,0.00024999,2]
[340543900,1729429855973,-890.3,0.00024999,2]
[340543901,1729429855982,-890.3,0.00024999,2]
[340543902,1729429855992,-890.3,0.00024999,2]
[340543903,1729429856002,-890.3,0.00024999,2]
[340543904,1729429856011,-890.3,0.00024999,2]
[340543905,1729429856021,-890.3,0.00024999,2]
[340543906,1729429856031,-890.3,0.00024999,2]
[340543907,1729429856041,-890.3,0.00024999,2]
[340543908,1729429856050,-890.3,0.00024999,2]
[340543909,1729429856060,-890.3,0.00024999,2]
[340543910,1729429856070,-890.5,0.00024999,2]
[340543911,1729429856080,-500.0,0.00024999,2]
[340543912,1729429856089,-500.0,0.00024999,2]
[340543913,1729429856099,-500.0,0.00024999,2]
[340543914,1729429856110,-500.0,0.00024999,2]
[340543915,1729429856121,-500.0,0.00024999,2]
[340543916,1729429856131,-500.0,0.00024999,2]
[340543917,1729429856140,-500.0,0.00024999,2]
[340543918,1729429856150,-500.0,0.00024999,2]
[340543919,1729429856161,-500.0,0.00024999,2]
[340543920,1729429856171,-500.0,0.00024999,2]
[340543921,1729429856180,-168.88,0.00024999,2]
[340543922,1729429856190,-500.0,0.00024999,2]
[340543923,1729429856200,-500.0,0.00024999,2]
[340543924,1729429856210,-500.0,0.00024999,2]
[340543925,1729429856220,-500.0,0.00024999,2]
[340543926,1729429856232,-518.19015263,0.00024999,2]
[340543927,1729429856242,-500.0,0.00024999,2]
[340543928,1729429856257,-500.0,0.00024999,2]
[340543929,1729429856267,-500.0,0.00024999,2]
[340543930,1729429856276,-500.0,0.00024999,2]
[340543931,1729429856285,-500.0,0.00024999,2]
[340543932,1729429856294,-296.63011942,0.00024999,2]
[340543933,1729429856304,-500.0,0.00024999,2]
[340543934,1729429856313,-205.56718258,0.00024999,2]
[340543935,1729429856322,-683.22,0.00024999,2]
[340543936,1729429856331,-683.22,0.00024999,2]
[340543937,1729429856341,-683.22,0.00024999,2]
[340543938,1729429856350,-683.22,0.00024999,2]
[340543939,1729429856359,-683.22,0.00024999,2]
[340543940,1729429856368,-683.22,0.00024999,2]
[340543941,1729429856379,-683.22,0.00024999,2]
[340543942,1729429856389,-683.22,0.00024999,2]
[340543943,1729429856399,-683.22,0.00024999,2]
[340543944,1729429856410,-683.22,0.00024999,2]
[340543945,1729429856421,-683.22,0.00024999,2]
[340543946,1729429856431,-683.22,0.00024999,2]
[340543947,1729429856440,-683.36,0.00024999,2]
[340543948,1729429856451,-500.0,0.00024999,2]
[340543949,1729429856461,-500.0,0.00024999,2]
[340543950,1729429856470,-500.0,0.00024999,2]
[340543951,1729429856479,-500.0,0.00024999,2]
[340543952,1729429856491,-500.0,0.00024999,2]
[340543953,1729429856502,-500.0,0.00024999,2]
[340543954,1729429856512,-500.0,0.00024999,2]
[340543955,1729429856521,-474.55465712,0.00024999,2]
[340543956,1729429856531,-500.0,0.00024999,2]
[340543957,1729429856541,-171.97143735,0.00024999,2]
[340543958,1729429856551,-532.58186525,0.00024999,2]
[340543959,1729429856562,-500.0,0.00024999,2]
[340543960,1729429856572,-500.0,0.00024999,2]
[340543961,1729429856582,-500.0,0.00024999,2]
[340543962,1729429856592,-500.0,0.00024999,2]
[340543963,1729429856603,-500.0,0.00024999,2]
[340543964,1729429856613,-500.0,0.00024999,2]
[340543965,1729429856624,-500.0,0.00024999,2]
[340543966,1729429856634,-500.0,0.00024999,2]
[340543967,1729429856643,-500.0,0.00024999,2]
[340543968,1729429856653,-168.04,0.00024999,2]
[340543969,1729429856663,-500.0,0.00024999,2]
[340543970,1729429856672,-411.51752195,0.00024999,2]
[340543971,1729429856683,-1364.66,0.00024999,2]
[340543972,1729429856695,-1364.66,0.00024999,2]
[340543973,1729429856705,-1364.66,0.00024999,2]
[340543974,1729429856714,-1364.66,0.00024999,2]
[340543975,1729429856723,-1364.66,0.00024999,2]
[340543976,1729429856733,-1364.66,0.00024999,2]
[340543977,1729429856743,-1364.66,0.00024999,2]
[340543978,1729429856753,-1364.66,0.00024999,2]
[340543979,1729429856762,-1364.66,0.00024999,2]
[340543980,1729429856771,-1364.66,0.00024999,2]
[340543981,1729429856780,-1364.66,0.00024999,2]
[340543982,1729429856789,-1364.66,0.00024999,2]
[340543983,1729429856799,-1364.83,0.00024999,2]
[340543984,1729429856809,-336366.39621126,0.00025,2]
[340543985,1729429856976,-736.06304311,0.00025,2]
[340543986,1729429856988,-473.48451638,0.00025,2]
[340543987,1729429857001,-253.34417042,0.00025,2]
[340543988,1729429857091,-664.84948491,0.00025,2]
[340543989,1729429857104,-580.70497735,0.00025,2]
[340543990,1729429857116,-3262.65949411,0.00025,2]
[340543991,1729429857128,-601.98595797,0.00025,2]
[340543992,1729429857139,-1056.81499998,0.00025,2]
[340543993,1729429857151,-500.0,0.00025,2]
[340543994,1729429857204,-536.99,0.00024982,2]
[340543995,1729429857214,-536.99,0.00024997,2]
[340543996,1729429857224,-536.99,0.00024998,2]
[340543997,1729429857233,-536.99,0.00024999,2]
[340543998,1729429857246,-2060.4773854,0.00025,2]
[340543999,1729429857311,-965.54796081,0.00025,2]
[340544000,1729429857324,-842.25736,0.00025,2]
[340544001,1729429857337,-1493.397668,0.00025,2]
[340544002,1729429857350,-7026.75317065,0.00025,2]
[340544003,1729429857362,-1891.0864325,0.00025,2]
[340544004,1729429857382,-422.21423382,0.00024999,2]
[340544005,1729429857395,-114.77576618,0.00024999,2]
[340544006,1729429857405,-2486.776779,0.00025,2]
[340544007,1729429857667,-536.99,0.00024999,2]
[340544008,1729429857676,-536.99,0.00024999,2]
[340544009,1729429857686,-536.99,0.00024999,2]
[340544010,1729429857695,-536.99,0.00024999,2]
[340544011,1729429857704,-536.99,0.00024999,2]
[340544012,1729429857713,-536.99,0.00024999,2]
[340544013,1729429857722,-536.99,0.00024999,2]
[340544014,1729429857731,-536.99,0.00024999,2]
[340544015,1729429857740,-3815.04290532,0.00025,2]
[340544016,1729429857751,-250.0,0.00025,2]
[340544017,1729429857762,-700.0,0.00025,2]
[340544018,1729429857781,-536.99,0.00024999,2]
[340544019,1729429857791,-2456.35508831,0.00025,2]
[340544020,1729429857803,-10673.66000001,0.00025,2]
[340544021,1729429857815,-1574.809488,0.00025,2]
[340544022,1729429857832,-4148.49151524,0.00025,2]
[340544023,1729429857843,-13900.50591035,0.00025,2]
[340544024,1729429857854,-5562.72028883,0.00025,2]
[340544025,1729429857897,-536.99,0.00024999,2]
[340544026,1729429857906,-537.12,0.00024999,2]
[340544027,1729429857915,-135.17460681,0.00025,2]
[340544028,1729429857926,-2438.53564919,0.00025,2]
[340544029,1729429857937,-1000.54103258,0.00025,2]
[340544030,1729429857949,-342.122419,0.00025,2]
[340544031,1729429858106,-34215.78214511,0.00025,2]
[340544032,1729429866109,500.0,0.00027,60]
[340544033,1729429874494,933.338642,0.00027,60]
[340544035,1729430256113,170.85,0.00010959,2]
[340544036,1729430462598,250.0,0.0001,2]
[340544037,1729430468266,500.0,0.00027,60]
[340544038,1729430708121,4280981.52333624,0.00011,2]
[340544039,1729430719824,658.421971,9e-05,2]
[340544040,1729430719846,91.578029,9e-05,2]
[340544041,1729430768619,150.0,0.0001,2]
[340544042,1729430768640,145.46996041,0.0001,2]
[340544043,1729430803279,-559.0,0.0001089,2]
[340544044,1729430803301,-157.53,0.00010959,2]
[340544045,1729430803323,-169.74877742,0.00010999,2]
[340544046,1729430803346,-433.33065292,0.00010999,2]
[340544047,1729430803368,-500.0,0.00010999,2]
[340544048,1729430803389,-500.0,0.00010999,2]
[340544049,1729430803411,-398.88029464,0.00010999,2]
[340544050,1729430803435,-10410272.27970791,0.00011,2]
[340544051,1729430829159,-300.0,0.00012,2]
[340544052,1729430829179,-350.0,0.00014,2]
[340544053,1729430829200,-274.17666485,0.00016,2]
[340544054,1729430854184,-125.82333515,0.00016,2]
[340544055,1729430854206,-148.98475418,0.00018,2]
[340544056,1729430880755,900.0,0.0001,2]
[340544057,1729430883771,423914.25735587,0.00011,2]
[340544061,1729430926173,254.54862342,0.000107,2]
[340544062,1729430943436,561.0,0.0001,2]
[340544086,1729431032024,-150.0,0.0001726,2]
[340544087,1729431032033,-301.01524582,0.00018,2]
[340544088,1729431032043,-500.0,0.0002,2]
[340544089,1729431032052,-1087.99475418,0.000208,2]
[340544090,1729431032085,-1482.00524582,0.000208,2]
[340544091,1729431032094,-70.51379114,0.00021274,2]
[340544092,1729431032105,-515.17620886,0.00021274,2]
[340544093,1729431032115,-271.1201137,0.00021275,2]
[340544094,1729431032155,-377.01428948,0.00021275,2]
[340544095,1729431032166,-820.46464175,0.00021275,2]
[340544096,1729431032177,-5970.4554,0.00021275,2]
[340544097,1729431032188,-8874.25323111,0.00021275,2]
[340544120,1729431038345,-11747.5673771,0.00021275,2]
[340544121,1729431038458,-577.24257752,0.00021275,2]
[340544122,1729431038469,-1616.65956486,0.00021275,2]
[340544123,1729431038479,-408.49170071,0.00021362,2]
[340544124,1729431038489,-499.99,0.00021604,2]
[340544125,1729431038499,-408.49170071,0.00021604,2]
[340544126,1729431038509,-408.49170071,0.00021794,2]
[340544127,1729431038521,-408.49170071,0.00021918,2]
[340544128,1729431038531,-550.0,0.00022,2]
[340544129,1729431038540,-1000.0,0.00022,2]
[340544130,1729431038550,-408.49170071,0.00022229,2]
[340544131,1729431038559,-2110.0,0.000225,2]
[340544132,1729431038569,-345.0,0.00022502,2]